bitfinex/quotes_ETHUSD_20250603
["timestamp","ask_amount","ask_price","bid_price","bid_amount"]
[1748959733834,0.9789,2615.2,2614.6,8.52725612]
[1748959734126,1.952,2615.4,2615.2,3.82369496]
[1748959734330,4.79309724,2615.7,2615.2,3.82369295]
[1748959734533,0.02,2615.9,2615.7,3.82294428]
[1748959734825,0.25281705,2615.9,2615.6,3.82311424]
[1748959735132,0.25281705,2615.9,2615.5,3.82333428]
[1748959735425,3.82316469,2615.7,2615.2,3.82375264]
[1748959735725,0.9558,2615.3,2614.7,8.0]
[1748959735923,0.9558,2615.3,2614.9,3.82413196]
[1748959736124,0.9558,2615.3,2614.8,3.82438427]
[1748959736332,0.9558,2615.3,2614.7,8.0]
[1748959736635,4.61297338,2615.7,2614.7,11.8244598]
[1748959736784,0.977,2615.5,2615.1,3.8238159]
[1748959736983,0.977,2615.5,2615.1,3.82387409]
[1748959737226,0.977,2615.5,2615.2,3.82377825]
[1748959737643,0.977,2615.5,2615.2,3.82367516]
[1748959737937,0.9906,2615.8,2615.4,3.82340078]
[1748959738095,0.02,2615.9,2615.7,3.8229949]
[1748959738433,0.02,2615.9,2615.5,0.38234008]
[1748959738590,0.02,2615.9,2615.8,3.82292224]
[1748959739193,0.02,2615.9,2615.6,3.82312576]
[1748959739401,0.02,2615.9,2615.5,4.20564475]
[1748959739691,0.02,2615.9,2615.1,8.0]
[1748959740009,0.02,2615.9,2615.5,3.82323091]
[1748959740205,0.02,2615.9,2615.1,8.0]
[1748959740440,0.02,2615.9,2615.4,3.82339075]
[1748959740641,0.02,2615.9,2615.2,3.82379932]
[1748959740841,3.8230089,2615.8,2615.1,11.82383268]
[1748959741065,3.82299174,2615.8,2615.2,3.82365504]
[1748959741266,0.02,2615.9,2615.5,3.82327005]
[1748959741450,0.02,2615.9,2615.1,11.8238851]
[1748959741770,3.82299048,2615.8,2615.3,3.82365001]
[1748959741938,3.82331076,2615.6,2614.9,3.82415419]
[1748959742137,0.7665751,2615.8,2614.5,8.52725612]
[1748959742488,3.82327351,2615.6,2615.1,3.82393094]
[1748959742669,3.82318534,2615.7,2615.2,3.82375039]
[1748959742826,0.7665751,2615.8,2615.1,3.82387211]
[1748959743165,0.7665751,2615.8,2615.2,3.82366356]
[1748959743342,3.84284271,2615.9,2615.4,3.82350149]
[1748959743538,0.02,2615.9,2615.3,3.82358065]
[1748959743864,0.02,2615.9,2615.3,3.82365311]
[1748959744084,0.02,2615.9,2615.8,3.82292224]
[1748959744565,0.02,2615.9,2615.8,11.82292224]
[1748959744736,0.02,2615.9,2615.8,14.24024455]
[1748959744940,0.02,2615.9,2615.8,17.27776255]
[1748959745674,0.02,2615.9,2615.8,8.0]
[1748959745874,0.02,2615.9,2615.8,3.82292224]
[1748959746077,0.02,2615.9,2615.6,11.82317105]
[1748959746240,0.02,2615.9,2615.8,3.82292224]
[1748959747576,0.02,2615.9,2615.8,11.21292424]
[1748959747779,0.02,2615.9,2615.8,29.35275375]
[1748959747996,0.02,2615.9,2615.8,36.12675375]
[1748959749087,0.00025559,2615.9,2615.8,36.50875441]
[1748959749290,0.00025559,2615.9,2615.8,38.07662341]
[1748959749589,1.932,2617.5,2616.8,3.82146132]
[1748959749764,3.82060276,2617.4,2616.8,3.82146132]
[1748959749959,3.82073792,2617.3,2616.8,3.82146132]
[1748959750193,3.82073792,2617.3,2616.7,3.82153077]
[1748959750351,3.82073792,2617.3,2616.8,3.82146132]
[1748959750684,3.82089704,2617.2,2616.5,3.82182272]
[1748959750988,3.82089948,2617.2,2616.6,3.821648]
[1748959751310,1.932,2617.5,2616.7,3.82154621]
[1748959751630,3.8211135,2617.1,2616.6,5.00385147]
[1748959751893,3.82115285,2617.1,2616.4,8.0]
[1748959752099,1.932,2617.5,2616.3,8.0]
[1748959752100,3.82095716,2617.2,2616.7,3.82156601]
[1748959752254,3.82061932,2617.4,2616.7,3.82147374]
[1748959752456,3.82088058,2617.2,2616.7,3.82147374]
[1748959752968,3.82087846,2617.2,2616.7,3.82149982]
[1748959753353,10.58167161,2617.4,2616.3,20.34941644]
[1748959753581,3.82088186,2617.2,2616.7,3.82152887]
[1748959753782,10.58167161,2617.4,2616.5,3.82189948]
[1748959754088,3.8205876,2617.4,2616.8,3.82146132]
[1748959754289,0.02,2617.9,2616.8,21.82146132]
[1748959754491,3.82033599,2617.6,2616.8,11.82146132]
[1748959754679,3.82033599,2617.6,2616.8,13.43945931]
[1748959754993,3.82099812,2617.2,2616.5,3.82189948]
[1748959755189,3.82078007,2617.3,2616.6,3.82165818]
[1748959755493,3.82084666,2617.3,2616.7,3.82151951]
[1748959755694,3.82118509,2617.0,2616.5,3.82184076]
[1748959755990,6.758,2617.4,2616.7,3.82150681]
[1748959755991,3.8208554,2617.3,2616.7,3.82150681]
[1748959756159,6.758,2617.4,2616.8,3.82146132]
[1748959756358,3.82061559,2617.4,2616.8,3.82146132]
[1748959756559,6.754,2617.6,2616.8,3.82146132]
[1748959756781,3.82022454,2617.7,2616.8,3.82146132]
[1748959756987,10.57235858,2617.6,2616.8,13.82146132]
[1748959757156,6.752,2617.6,2616.8,6.43848375]
[1748959757356,10.57120785,2617.7,2616.8,14.43848375]
[1748959757586,3.82033058,2617.6,2616.8,14.43848375]
[1748959758089,3.82035871,2617.6,2616.8,14.43848375]
[1748959758606,6.746,2617.7,2616.8,14.43848375]
[1748959758760,10.5661934,2617.7,2616.8,14.43848375]
[1748959759091,10.5661934,2617.7,2616.8,11.82146132]
[1748959759092,3.82065153,2617.4,2616.8,11.82146132]
[1748959759320,3.84141657,2616.9,2616.4,0.51]
[1748959759632,0.02,2616.9,2616.5,3.82179965]
[1748959759909,0.02,2616.9,2616.5,3.821821]
[1748959760115,0.02,2616.9,2616.5,3.82177196]
[1748959760689,3.84136242,2616.9,2616.4,3.82200219]
[1748959760889,0.02,2616.9,2616.3,3.82210587]
[1748959761126,0.02,2616.9,2616.3,3.82216152]
[1748959761336,0.02,2616.9,2615.3,18.383653]
[1748959761337,11.82162806,2616.7,2615.3,18.383653]
[1748959761515,8.696,2616.6,2615.5,10.0]
[1748959761724,1.931,2616.6,2616.2,3.82223983]
[1748959761886,8.696,2616.6,2616.2,3.82223983]
[1748959762083,8.696,2616.6,2616.1,3.82241571]
[1748959762383,8.696,2616.6,2615.8,11.82287774]
[1748959762584,0.02,2616.9,2616.6,3.82161117]
[1748959762780,0.02,2616.9,2616.1,3.82248385]
[1748959763019,3.84135374,2616.9,2616.4,3.82201495]
[1748959763175,3.84135374,2616.9,2616.3,3.82212485]
[1748959763176,3.82156138,2616.8,2616.3,3.82212485]
[1748959763578,0.02,2616.9,2616.0,8.52725612]
[1748959763817,3.82155815,2616.8,2616.2,3.82224357]
[1748959764018,3.82154236,2616.8,2616.2,3.82222778]
[1748959764218,0.02,2616.9,2616.3,3.82217562]
[1748959764524,0.02,2616.9,2616.1,12.3496023]
[1748959764823,0.02,2616.9,2616.5,3.82181368]
[1748959765332,0.02,2616.9,2616.6,3.82173354]
[1748959765479,0.02,2616.9,2616.2,1.23496023]
[1748959765480,0.02,2616.9,2616.7,3.82158349]
[1748959765676,0.02,2616.9,2616.7,3.82160629]
[1748959765880,0.02,2616.9,2616.2,9.23496023]
[1748959766123,3.82153023,2616.8,2616.3,3.82210391]
[1748959766291,3.82153023,2616.8,2616.2,9.23496023]
[1748959766292,0.76628138,2616.8,2616.2,3.82223835]
[1748959766615,0.02,2616.9,2616.2,3.82223835]
[1748959766616,3.82167264,2616.7,2616.2,3.82219911]
[1748959766976,0.02,2616.9,2616.1,8.52725612]
[1748959767182,0.02,2616.9,2616.4,8.52725612]
[1748959767420,0.02,2616.9,2616.8,3.82146132]
[1748959767983,0.02,2616.9,2616.7,3.82158346]
[1748959767984,0.02,2616.9,2616.7,3.82153425]
[1748959768183,0.02,2616.9,2616.8,3.82146132]
[1748959768480,0.02,2616.9,2616.5,3.82175383]
[1748959768677,0.02,2616.9,2616.8,3.82146132]
[1748959768917,0.02,2616.9,2616.4,12.34924043]
[1748959769075,0.02,2616.9,2616.7,3.82159966]
[1748959769281,0.02,2616.9,2616.5,3.82176555]
[1748959769477,0.02,2616.9,2616.7,3.82153364]
[1748959769894,0.02,2616.9,2616.8,3.82146132]
[1748959770094,0.02,2616.9,2616.8,11.82146132]
[1748959770323,0.02,2616.9,2616.7,3.82159662]
[1748959770527,0.02,2616.9,2616.8,3.82146132]
[1748959770820,0.02,2616.9,2616.8,4.62398477]
[1748959772314,0.02,2616.9,2616.8,12.62398477]
[1748959774403,0.02,2616.9,2616.8,17.44548577]
[1748959776108,0.02,2616.9,2616.8,15.79514077]
[1748959776311,0.02,2616.9,2616.8,24.52399095]
[1748959776594,0.02,2616.9,2616.8,20.81557095]
[1748959777397,0.02,2616.9,2616.8,24.04810295]
[1748959777599,0.02,2616.9,2616.8,24.59810295]
[1748959778025,0.02,2616.9,2616.8,31.35910295]
[1748959778436,0.02,2616.9,2616.8,33.90536495]
[1748959778739,0.02,2616.9,2616.8,31.57333995]
[1748959778908,0.02,2616.9,2616.8,27.57557095]
[1748959779107,0.02,2616.9,2616.8,31.75425895]
[1748959779508,0.02,2616.9,2616.8,31.20425895]
[1748959780624,0.02,2616.9,2616.8,27.57557095]
[1748959780826,0.02,2616.9,2616.8,29.61045995]
[1748959781399,0.02,2616.9,2616.8,27.57557095]
[1748959781741,0.02,2616.9,2616.8,20.81557095]
[1748959782107,0.02,2616.9,2616.8,12.62398477]
[1748959782306,0.02,2616.9,2616.8,4.62398477]
[1748959782524,0.02,2616.9,2616.8,12.62398477]
[1748959784247,0.02,2616.9,2616.8,22.62398477]
[1748959784450,0.02,2616.9,2616.8,21.67508677]
[1748959784624,0.02,2616.9,2616.8,17.08906077]
[1748959784823,0.02,2616.9,2616.8,13.17398477]
[1748959785212,0.02,2616.9,2616.8,17.12548077]
[1748959785543,0.02,2616.9,2616.8,23.17398477]
[1748959785752,0.02,2616.9,2616.8,23.70608477]
[1748959785910,0.9841,2617.6,2617.5,12.01202553]
[1748959786311,0.9841,2617.6,2617.4,3.82052806]
[1748959786549,0.9841,2617.6,2617.3,11.82065293]
[1748959786750,0.9841,2617.6,2617.4,3.82055689]
[1748959786952,0.9841,2617.6,2617.5,3.82043935]
[1748959787322,0.9841,2617.6,2617.3,8.0]
[1748959787527,0.9841,2617.6,2617.4,3.82058531]
[1748959787728,0.9841,2617.6,2617.3,11.82067193]
[1748959787930,0.9841,2617.6,2617.4,3.82057607]
[1748959788321,0.9841,2617.6,2617.5,3.82043935]
[1748959789658,0.9841,2617.6,2617.5,11.82043935]
[1748959789862,0.9841,2617.6,2617.5,8.0]
[1748959790016,0.9841,2617.6,2617.1,3.82099028]
[1748959790216,6.755,2617.9,2617.4,3.82053527]
[1748959790460,7.8124772,2617.9,2617.3,11.8206137]
[1748959790631,3.82006202,2617.8,2617.3,11.8206137]
[1748959790958,7.8124772,2617.9,2617.5,3.82039391]
[1748959791157,7.8124772,2617.9,2617.1,8.0]
[1748959791465,7.8124772,2617.9,2616.9,8.0]
[1748959791758,0.02,2617.9,2617.7,3.82004874]
[1748959792066,0.02,2617.9,2617.8,11.82000152]
[1748959792443,0.02,2617.9,2617.8,15.26267752]
[1748959792622,0.02,2617.9,2617.8,17.99011579]
[1748959793137,0.02,2617.9,2617.8,14.54743979]
[1748959793543,0.02,2617.9,2617.8,19.44305479]
[1748959793726,0.02,2617.9,2617.8,14.54743979]
[1748959793922,0.02,2617.9,2617.8,11.82000152]
[1748959794130,0.02,2617.9,2617.8,8.0]
[1748959794430,0.02,2617.9,2617.4,12.01205927]
[1748959794633,0.02,2617.9,2617.5,8.0]
[1748959794857,0.02,2617.9,2617.5,11.82043332]
[1748959795240,0.02,2617.9,2617.6,3.82028847]
[1748959795452,0.02,2617.9,2617.5,11.82036521]
[1748959795628,0.02,2617.9,2617.6,3.82022007]
[1748959795962,0.02,2617.9,2617.5,11.82034006]
[1748959796178,0.02,2617.9,2617.6,3.82025106]
[1748959796470,0.02,2617.9,2617.5,11.82036227]
[1748959796862,0.02,2617.9,2617.6,3.82028382]
[1748959797079,0.02,2617.9,2617.5,11.82037513]
[1748959797273,0.02,2617.9,2617.3,12.01223056]
[1748959797596,0.02,2617.9,2617.5,11.82035924]
[1748959798006,0.02,2617.9,2617.5,8.0]
[1748959798507,0.02,2617.9,2617.5,11.82036979]
[1748959799286,0.02,2617.9,2617.5,8.0]
[1748959799499,0.02,2617.9,2617.5,11.82036107]
[1748959800007,3.83985611,2617.9,2617.5,8.0]
[1748959800209,0.02,2617.9,2617.5,11.82039988]
[1748959800408,0.02,2617.9,2617.5,11.8204099]
[1748959800710,0.02,2617.9,2617.1,6.706]
[1748959800711,3.82000152,2617.8,2617.1,8.0]
[1748959801010,3.82032955,2617.6,2617.1,11.82093915]
[1748959801196,0.40397832,2617.9,2617.1,11.82093915]
[1748959801398,0.40397832,2617.9,2617.6,8.19158618]
[1748959801399,0.02,2617.9,2617.6,8.19158618]
[1748959801905,3.82000396,2617.8,2617.3,16.19158618]
[1748959802111,3.82026485,2617.7,2617.2,11.82083511]
[1748959802410,3.82026717,2617.7,2617.3,3.82072338]
[1748959802708,3.82037813,2617.6,2617.2,8.0]
[1748959803111,3.82008307,2617.8,2617.4,8.0]
[1748959803313,0.8957,2617.7,2617.4,8.0]
[1748959803512,0.8957,2617.7,2616.9,0.51]
[1748959803513,3.82035031,2617.6,2617.0,3.82115426]
[1748959803679,3.82058668,2617.4,2617.0,3.82115426]
[1748959803879,3.82058668,2617.4,2616.9,12.33124578]
[1748959804231,3.82043935,2617.5,2617.0,3.82115846]
[1748959804416,3.82043935,2617.5,2617.1,3.82101444]
[1748959804623,4.71592973,2617.7,2617.3,8.0]
[1748959804821,0.8957,2617.7,2617.6,11.82029339]
[1748959805525,0.02,2617.9,2617.8,11.82000152]
[1748959805828,0.02,2617.9,2617.8,20.0115877]
[1748959806524,0.02,2617.9,2617.8,23.4649637]
[1748959806687,0.02,2617.9,2617.8,22.74009155]
[1748959808124,0.02,2617.9,2617.8,3.82000152]
[1748959808322,0.02,2617.9,2617.7,3.82008219]
[1748959808483,0.02,2617.9,2617.7,3.82014745]
[1748959808687,0.02,2617.9,2617.6,8.0]
[1748959808929,3.8200956,2617.8,2617.3,3.82065983]
[1748959809232,0.02,2617.9,2616.9,14.88058618]
[1748959809427,3.83992694,2617.9,2617.5,8.0]
[1748959809631,0.02,2617.9,2617.7,3.82009653]
[1748959810135,0.02,2617.9,2617.2,16.19158618]
[1748959810422,3.82036102,2617.6,2617.0,8.0]
[1748959810730,3.82051383,2617.5,2617.0,11.82114832]
[1748959811022,3.82051383,2617.5,2617.0,11.82112137]
[1748959811233,0.02,2617.9,2617.1,3.82101858]
[1748959811531,3.82000656,2617.8,2617.3,11.82066589]
[1748959811687,3.82020776,2617.7,2617.2,11.23472329]
[1748959811898,7.76197002,2617.9,2617.0,3.82109186]
[1748959812111,3.82050145,2617.5,2617.0,3.8210947]
[1748959812315,7.76197002,2617.9,2616.6,10.46176274]
[1748959812316,11.58183831,2617.9,2616.6,10.46176274]
[1748959812514,0.776197,2617.8,2616.6,3.821647]
[1748959812713,3.82031323,2617.6,2616.7,3.8215821]
[1748959812928,3.82031323,2617.6,2616.4,8.19158618]
[1748959812929,3.82016087,2617.7,2617.2,3.8207375]
[1748959813134,10.50939697,2617.6,2617.1,3.82092283]
[1748959813348,8.38837478,2617.6,2617.2,3.82079114]
[1748959813502,12.20867109,2617.6,2617.1,3.82095759]
[1748959813834,12.20867109,2617.6,2617.2,8.0]
[1748959814040,3.82044697,2617.5,2617.2,8.0]
[1748959814342,3.82062159,2617.4,2616.9,3.8212344]
[1748959814508,12.20875796,2617.6,2616.8,11.82134237]
[1748959814509,3.82048763,2617.5,2616.8,11.82134237]
[1748959814710,3.82048763,2617.5,2616.7,12.01313374]
[1748959814711,3.82108678,2617.1,2616.7,8.19158618]
[1748959814916,3.82108678,2617.1,2616.2,1.888]
[1748959814917,6.689,2617.6,2616.4,14.88058618]
[1748959815100,3.82058531,2617.4,2616.3,0.38740577]
[1748959815297,3.82168936,2616.7,2616.2,3.82231412]
[1748959815559,3.82161645,2616.7,2615.9,8.19158618]
[1748959815716,3.82171119,2616.7,2616.1,3.82234634]
[1748959815914,3.82171119,2616.7,2616.3,8.0]
[1748959816149,6.689,2616.8,2616.0,0.81915862]
[1748959816354,3.82199286,2616.5,2615.7,8.19158618]
[1748959816678,3.8219187,2616.5,2616.1,8.0]
[1748959816818,3.82164917,2616.7,2616.1,8.0]
[1748959817014,5.25485641,2616.7,2616.2,3.82231188]
[1748959817219,3.82181744,2616.6,2616.1,11.82248013]
[1748959817442,1.43320724,2616.7,2616.1,8.0]
[1748959817656,3.8217568,2616.6,2616.1,11.82242288]
[1748959817813,3.8217568,2616.6,2616.1,11.82242127]
[1748959818356,1.57655848,2616.6,2616.1,8.0]
[1748959818562,6.689,2616.8,2615.8,8.0]
[1748959818732,6.689,2616.8,2615.7,8.56737304]
[1748959819061,3.82160736,2616.7,2615.5,0.51]
[1748959819247,3.82175342,2616.6,2615.5,0.51]
[1748959819430,6.689,2616.8,2615.1,0.02]
[1748959819431,3.82318779,2615.7,2615.1,0.02]
[1748959819632,10.51320917,2615.7,2615.3,8.0]
[1748959819847,10.51320917,2615.7,2615.2,3.8237843]
[1748959820162,6.69,2615.7,2615.2,3.82372753]
[1748959820378,6.69,2615.7,2615.3,3.82357668]
[1748959820662,6.69,2615.7,2615.2,11.82379565]
[1748959820866,1.889,2616.4,2615.6,8.0]
[1748959821031,13.748,2616.8,2616.1,8.0]
[1748959821032,6.691,2616.6,2616.1,8.0]
[1748959821360,3.82199616,2616.5,2616.1,8.0]
[1748959821557,6.691,2616.6,2616.1,8.0]
[1748959821785,3.82197668,2616.5,2615.9,11.82270942]
[1748959821922,3.82191862,2616.5,2615.9,8.0]
[1748959822115,6.691,2616.6,2616.0,3.82257123]
[1748959822320,3.82190879,2616.5,2616.1,8.0]
[1748959822759,3.8220155,2616.5,2616.0,3.82250849]
[1748959823073,6.692,2616.5,2616.2,3.82226875]
[1748959823286,13.748,2616.8,2616.1,8.0]
[1748959823287,15.637,2616.8,2616.4,3.82200488]
[1748959823450,1.889,2617.3,2616.4,12.0135595]
[1748959823650,6.692,2617.0,2616.2,8.0]
[1748959823850,3.82179694,2616.6,2615.9,11.82277054]
[1748959824060,2.27106313,2617.3,2616.3,3.82217231]
[1748959824061,4.2029266,2617.3,2616.3,3.82217231]
[1748959824385,3.82170461,2616.7,2616.2,3.82226065]
[1748959824997,3.821755,2616.6,2616.1,20.01401236]
[1748959825159,3.82213629,2616.4,2616.0,8.0]
[1748959825341,11.27816193,2616.6,2616.1,3.82247829]
[1748959825542,7.45632178,2616.6,2616.1,3.82238573]
[1748959825964,6.692,2616.6,2616.1,3.82248385]
[1748959826168,3.82174345,2616.7,2616.2,8.0]
[1748959826169,3.82163161,2616.7,2616.2,8.0]
[1748959826446,6.692,2616.6,2616.1,8.0]
[1748959826793,6.692,2616.6,2616.1,11.82240184]
[1748959827079,10.51380135,2616.6,2616.1,11.82240184]
[1748959827238,10.51363063,2616.7,2616.2,3.8222559]
[1748959827438,3.82087727,2617.2,2616.1,17.75610156]
[1748959827634,3.82087727,2617.2,2615.8,8.0]
[1748959827635,3.82219164,2616.3,2615.8,8.0]
[1748959827860,3.82219164,2616.3,2615.8,11.82286665]
[1748959828084,6.692,2616.5,2616.0,8.0]
[1748959828288,3.82206016,2616.4,2616.0,8.0]
[1748959828652,3.82226325,2616.3,2615.8,3.82291795]
[1748959828881,3.82234509,2616.2,2615.7,3.82297206]
[1748959829082,8.581,2616.5,2615.5,0.51]
[1748959829286,3.8228398,2615.9,2615.5,0.51]
[1748959829696,3.82259036,2616.1,2615.5,3.82326492]
[1748959829905,3.82257588,2616.1,2615.6,3.823149]
[1748959830053,3.82204555,2616.4,2615.4,11.82344143]
[1748959830386,3.82251551,2616.1,2615.4,11.82350369]
[1748959830608,3.82264813,2616.0,2615.5,3.82329001]
[1748959830814,3.82301577,2615.8,2615.3,11.82356652]
[1748959830975,3.82316035,2615.7,2615.2,3.82373228]
[1748959831322,10.51494269,2615.8,2615.2,8.19158618]
[1748959831468,3.82336459,2615.5,2615.2,8.19158618]
[1748959831670,6.692,2615.7,2615.1,0.02]
[1748959831869,3.82379932,2615.2,2615.1,0.02]
[1748959832131,3.82371738,2615.3,2615.1,0.02]
[1748959832426,3.82358423,2615.4,2615.1,0.02]
[1748959832919,3.82229869,2616.3,2615.1,0.02]
[1748959833208,3.82336984,2615.5,2615.1,0.02]
[1748959833405,3.82350692,2615.4,2615.1,0.02]
[1748959833608,3.82379932,2615.2,2615.1,0.02]
[1748959833971,0.38222987,2616.2,2615.1,8.21158618]
[1748959834236,12.40349183,2616.1,2615.2,0.82115862]
[1748959834438,12.40349183,2616.1,2615.1,0.02]
[1748959834439,3.82354893,2615.4,2615.1,0.02]
[1748959834785,3.82373635,2615.3,2615.1,0.02]
[1748959834988,3.82379932,2615.2,2615.1,0.02]
[1748959838227,12.40579932,2615.2,2615.1,0.02]
[1748959841001,3.82366013,2615.3,2615.1,0.02]
[1748959841002,3.82371471,2615.3,2615.1,0.02]
[1748959841203,1.889,2615.7,2615.1,0.02]
[1748959841527,3.8235906,2615.4,2615.1,0.02]
[1748959841726,3.82379932,2615.2,2615.1,0.02]
[1748959842291,1.889,2615.6,2615.1,0.02]
[1748959842543,3.82366532,2615.3,2615.1,0.02]
[1748959842831,3.82379932,2615.2,2615.1,0.02]
[1748959843032,3.82300576,2615.8,2615.1,0.02]
[1748959843231,3.82344391,2615.5,2615.1,0.02]
[1748959843451,3.82304415,2615.8,2615.3,8.19158618]
[1748959843730,3.82323832,2615.6,2615.3,2.00353855]
[1748959843897,3.82315176,2615.7,2615.2,3.82378886]
[1748959844093,3.82358559,2615.4,2615.1,8.02]
[1748959844294,3.82379932,2615.2,2615.1,0.02]
[1748959844495,3.823708,2615.3,2615.1,0.02]
[1748959844699,3.82379932,2615.2,2615.1,0.02]
[1748959844996,3.82287554,2615.9,2615.1,0.02]
[1748959845337,3.82329266,2615.6,2615.1,3.84394444]
[1748959845541,3.82316393,2615.7,2615.2,3.8236904]
[1748959845833,3.82324262,2615.6,2615.1,3.8438944]
[1748959846540,3.82336353,2615.5,2615.1,0.02]
[1748959846834,3.82342512,2615.5,2615.1,0.02]
[1748959846998,3.82329413,2615.6,2615.1,5.04743632]
[1748959847637,6.694,2615.9,2615.2,3.82371712]
[1748959847856,6.694,2615.9,2615.1,1.22356103]
[1748959847857,3.82336659,2615.5,2615.1,1.22356103]
[1748959848438,3.82306839,2615.7,2615.1,1.22356103]
[1748959848627,3.8237401,2615.3,2615.1,0.02]
[1748959848820,3.82379932,2615.2,2615.1,0.02]
[1748959849025,0.38230684,2615.6,2615.1,0.02]
[1748959849229,3.82358697,2615.4,2615.1,0.02]
[1748959850020,3.82358697,2615.4,2614.7,8.19158618]
[1748959850215,3.82308134,2615.7,2614.7,8.19158618]
[1748959850458,10.51678392,2615.9,2614.9,3.82409453]
[1748959850459,10.51686496,2615.9,2614.9,3.82409453]
[1748959850670,3.82354956,2615.4,2614.9,3.82409453]
[1748959851156,3.82354956,2615.4,2614.9,5.40810976]
[1748959851532,10.51679877,2615.9,2614.9,5.40823837]
[1748959851830,3.82279877,2615.9,2615.0,3.82403174]
[1748959852042,3.82328052,2615.6,2615.0,3.82402674]
[1748959852366,3.8233655,2615.5,2615.0,4.36482116]
[1748959852867,3.82321788,2615.6,2615.1,3.82383617]
[1748959852868,3.82322214,2615.6,2615.1,3.82383617]
[1748959853641,3.8233326,2615.6,2615.1,3.82383617]
[1748959854341,3.82339773,2615.5,2615.1,3.82393256]
[1748959854856,10.51577745,2615.9,2615.0,12.55639794]
[1748959855055,3.82329139,2615.6,2615.1,3.82392671]
[1748959856149,3.82336614,2615.5,2615.1,3.82392671]
[1748959856327,3.82354094,2615.4,2615.0,8.73239038]
[1748959856528,3.82336614,2615.5,2615.0,8.73239038]
[1748959856529,3.82342415,2615.5,2615.0,12.5564742]
[1748959856730,7.6332,2615.8,2615.4,3.82341055]
[1748959856984,4.76313303,2615.8,2615.3,8.19158618]
[1748959857181,0.9402,2615.8,2615.4,3.82349652]
[1748959857480,0.912,2616.6,2615.8,10.0]
[1748959857819,0.912,2616.6,2616.3,8.19158618]
[1748959857981,0.912,2616.6,2616.5,3.82189948]
[1748959858386,0.02,2616.9,2616.8,3.82146132]
[1748959858569,0.02,2616.9,2616.5,12.01339946]
[1748959858909,0.02,2616.9,2616.6,3.82165753]
[1748959859082,0.02,2616.9,2616.5,8.19158618]
[1748959859083,0.02,2616.9,2616.7,3.82158188]
[1748959859408,0.02,2616.9,2616.6,3.82167836]
[1748959859603,0.02,2616.9,2616.5,12.0134849]
[1748959859808,0.02,2616.9,2616.6,1.20134849]
[1748959860006,0.02,2616.9,2616.6,5.023097]
[1748959860205,0.02,2616.9,2616.7,3.82158847]
[1748959860514,0.02,2616.9,2616.3,3.82211227]
[1748959860731,0.02,2616.9,2616.1,1.888]
[1748959860732,0.02,2616.9,2616.5,8.19158618]
[1748959860919,0.02,2616.9,2616.8,3.82146132]
[1748959861209,0.02,2616.9,2616.8,12.0130475]
[1748959862314,0.02,2616.9,2616.8,12.20437086]
[1748959862810,0.02,2616.9,2616.8,12.58503478]
[1748959863117,0.02,2616.9,2616.8,18.99617978]
[1748959863314,0.02,2616.9,2616.8,0.38066392]
[1748959863618,0.02,2616.9,2616.5,0.51]
[1748959863973,0.02,2616.9,2616.8,3.82146132]
[1748959864175,0.02,2616.9,2616.7,3.8215434]
[1748959864626,0.02,2616.9,2616.6,8.19158618]
[1748959864775,0.02,2616.9,2616.7,3.82147814]
[1748959864985,0.02,2616.9,2616.6,3.8216759]
[1748959865191,0.02,2616.9,2616.5,3.8218213]
[1748959865590,0.02,2616.9,2616.4,8.19158618]
[1748959865591,3.82146396,2616.8,2616.4,8.19158618]
[1748959865799,3.82202074,2616.5,2616.0,8.19158618]
[1748959866018,0.02,2616.9,2616.3,8.19158618]
[1748959866512,0.02,2616.9,2616.6,3.82168488]
[1748959866705,0.02,2616.9,2616.5,3.8217621]
[1748959866925,0.02,2616.9,2616.6,3.82167786]
[1748959867230,0.02,2616.9,2616.7,3.82160736]
[1748959867555,0.02,2616.9,2616.8,3.82146132]
[1748959867844,0.02,2617.9,2616.9,10.0]
[1748959867992,0.02,2617.9,2617.0,8.19158618]
[1748959868194,3.82052138,2617.5,2617.0,12.01268578]
[1748959868522,3.82035869,2617.6,2617.1,3.82101354]
[1748959868689,3.82045882,2617.5,2617.0,12.0126772]
[1748959869092,3.82079868,2617.3,2616.8,3.82143885]
[1748959869292,4.58461703,2617.5,2616.7,8.19158618]
[1748959869293,4.58451243,2617.5,2616.7,8.19158618]
[1748959869493,4.58451243,2617.5,2616.6,10.0]
[1748959869689,3.82112364,2617.1,2616.6,3.82174258]
[1748959869943,4.58451243,2617.5,2616.5,10.0]
[1748959869944,0.76406448,2617.5,2616.5,10.0]
[1748959870098,3.82085571,2617.3,2616.7,12.01311617]
[1748959870432,4.94797139,2617.4,2616.7,12.01308776]
[1748959870644,3.82090152,2617.2,2616.7,12.01308776]
[1748959870998,3.82057082,2617.5,2616.7,8.19158618]
[1748959871332,3.8204564,2617.5,2616.8,3.82137443]
[1748959871548,1.05074564,2617.5,2616.7,8.19158618]
[1748959871839,4.87121007,2617.5,2616.5,12.01340811]
[1748959872023,3.82094348,2617.2,2616.5,8.19158618]
[1748959872222,3.82075741,2617.3,2616.6,3.8216985]
[1748959872408,4.39163148,2617.2,2616.5,7.61886354]
[1748959872736,4.39156881,2617.2,2616.7,3.82153819]
[1748959873436,4.39163673,2617.2,2616.7,3.82150698]
[1748959873665,4.76944025,2617.1,2616.5,3.79705941]
[1748959873870,0.9484,2617.1,2616.4,8.0]
[1748959874011,0.9484,2617.1,2616.8,3.82140216]
[1748959874349,0.9484,2617.1,2616.8,3.82137578]
[1748959874658,0.9484,2617.1,2616.0,2.08098533]
[1748959874947,0.9484,2617.1,2616.4,3.82197]
[1748959875109,3.82138356,2616.9,2616.4,3.82197]
[1748959875309,0.85909528,2616.9,2616.5,3.82186671]
[1748959875549,4.6804831,2616.9,2616.4,3.82197157]
[1748959875860,0.9484,2617.1,2616.4,8.19158618]
[1748959876343,0.9484,2617.1,2616.4,12.01362913]
[1748959876344,3.82116927,2617.0,2616.4,12.01362913]